bitfinex-derivatives/quotes_ETHF0:USTF0_20240829
["timestamp","ask_amount","ask_price","bid_price","bid_amount"]
[1724891163463,9.07e-06,2524.8,2524.7,0.39598]
[1724891163869,9.07e-06,2524.8,2524.6,0.39599]
[1724891164172,9.07e-06,2524.8,2524.7,0.39598]
[1724891164475,9.07e-06,2524.8,2524.7,45.15678]
[1724891164675,9.07e-06,2524.8,2524.7,51.15678]
[1724891164873,9.07e-06,2524.8,2524.7,44.7608]
[1724891165175,9.07e-06,2524.8,2524.7,41.19598]
[1724891165375,9.07e-06,2524.8,2524.7,40.8]
[1724891165571,9.07e-06,2524.8,2524.7,0.39598]
[1724891165769,9.07e-06,2524.8,2524.5,0.00593907]
[1724891165962,9.07e-06,2524.8,2524.5,40.80593907]
[1724891166163,9.07e-06,2524.8,2524.5,41.20194907]
[1724891166368,9.07e-06,2524.8,2524.5,0.00593907]
[1724891167174,9.07e-06,2524.8,2524.6,0.396]
[1724891167370,9.07e-06,2524.8,2524.7,0.39598]
[1724891167877,9.07e-06,2524.8,2524.7,10.35678]
[1724891168079,9.07e-06,2524.8,2524.7,12.7163]
[1724891168266,3.2078,2525.9,2524.7,11.33036]
[1724891168471,0.39581,2525.8,2525.3,0.39588]
[1724891168679,3.2078,2525.9,2525.4,40.8]
[1724891168878,0.39585,2525.6,2525.4,40.8]
[1724891169079,0.39586,2525.5,2524.9,0.39595]
[1724891169276,0.00593907,2525.5,2524.7,0.3796]
[1724891169479,3.2078,2525.4,2524.5,0.00593907]
[1724891169693,3.2078,2524.8,2524.5,0.00593907]
[1724891169974,0.3641,2524.7,2524.5,0.00593907]
[1724891170180,0.3641,2525.2,2524.5,0.00593907]
[1724891170576,0.3641,2525.2,2524.7,0.39597]
[1724891170785,0.3641,2525.2,2524.8,0.39597]
[1724891171092,0.00593907,2525.5,2524.5,0.00593907]
[1724891171093,0.00593907,2525.5,2524.7,3.2078]
[1724891171375,0.39592,2525.2,2524.6,0.3558]
[1724891171580,3.2078,2525.4,2524.5,0.00593907]
[1724891171772,3.2078,2525.1,2524.5,0.00593907]
[1724891171971,0.39596,2524.9,2524.5,0.00593907]
[1724891172174,0.3641,2525.0,2524.5,0.00593907]
[1724891172377,0.39596,2524.9,2524.5,0.00593907]
[1724891172581,0.39597,2524.8,2524.5,0.00593907]
[1724891172884,4.692,2525.0,2524.5,0.00593907]
[1724891173179,0.396,2524.6,2524.5,0.00593907]
[1724891173579,10.3568,2524.6,2524.5,0.00593907]
[1724891173880,0.39604,2524.4,2523.7,3.2078]
[1724891174179,0.39606,2524.3,2523.7,3.2078]
[1724891174373,0.39606,2524.3,2523.8,40.8]
[1724891174885,0.39606,2524.3,2523.7,3.60393]
[1724891174886,0.39607,2524.2,2523.7,3.60394]
[1724891175086,0.00593907,2524.2,2523.8,0.39612]
[1724891175975,0.00593907,2524.2,2523.7,44.0078]
[1724891176182,0.00593907,2524.2,2524.1,0.39608]
[1724891176676,0.00593907,2524.2,2524.1,4.35768]
[1724891177481,0.00593907,2524.2,2524.1,4.73758]
[1724891177791,8.711,2525.7,2524.4,0.99005]
[1724891177987,0.39588,2525.4,2525.2,3.2078]
[1724891178194,0.98959,2525.7,2524.9,0.39594]
[1724891178485,0.98959,2525.7,2524.7,3.2078]
[1724891178486,3.2078,2525.5,2525.0,40.8]
[1724891178678,3.2078,2525.5,2524.5,0.3842]
[1724891178877,0.3959,2525.3,2524.9,0.00593907]
[1724891179074,0.39591,2525.2,2524.9,0.00593907]
[1724891179279,0.39592,2525.2,2524.9,40.80593907]
[1724891179479,0.39592,2525.2,2524.9,0.00593907]
[1724891179480,3.96,2525.1,2524.9,0.00593907]
[1724891179677,0.3602,2525.1,2524.9,0.00593907]
[1724891180076,4.3202,2525.1,2524.9,0.00593907]
[1724891180279,3.96,2525.0,2524.9,0.00593907]
[1724891181284,11.34579,2525.0,2524.9,0.00593907]
[1724891181484,0.39599,2524.7,2524.2,0.39606]
[1724891181689,0.39599,2524.7,2524.1,0.3799]
[1724891182287,0.39599,2524.7,2524.2,0.39605]
[1724891182484,0.39598,2524.8,2524.3,0.39604]
[1724891182876,0.3602,2525.1,2524.7,0.39597]
[1724891183185,4.321,2525.1,2524.5,3.2078]
[1724891183487,3.2078,2525.0,2524.1,0.3799]
[1724891183674,3.60374,2525.0,2524.4,0.39602]
[1724891184279,3.60374,2525.0,2524.5,40.8]
[1724891184280,3.2078,2524.6,2524.5,40.8]
[1724891184577,4.57,2524.7,2524.5,0.39601]
[1724891184780,3.2078,2524.9,2524.6,0.39599]
[1724891185285,7.1686,2524.9,2524.5,0.39601]
[1724891185586,3.2078,2524.9,2524.3,3.2078]
[1724891185789,0.00593907,2525.4,2525.3,0.39589]
[1724891186188,0.00593907,2525.4,2525.2,0.3959]
[1724891186493,4.57,2525.3,2525.1,0.39592]
[1724891186694,4.57,2525.3,2524.8,3.2078]
[1724891186695,4.57,2525.3,2525.0,0.39593]
[1724891186985,4.57,2525.3,2524.8,3.2078]
[1724891187191,0.00593907,2525.4,2525.3,0.39589]
[1724891187579,0.00593907,2525.4,2525.2,0.3959]
[1724891188286,0.00593907,2525.4,2525.1,3.60371]
[1724891188478,0.00593907,2525.4,2524.7,3.2078]
[1724891188680,0.40181907,2525.4,2524.9,0.39594]
[1724891189090,0.00593907,2525.4,2524.9,0.39594]
[1724891189292,0.00593907,2525.4,2524.7,3.2078]
[1724891189588,0.00593907,2525.4,2524.8,0.9899]
[1724891189890,0.00593907,2525.4,2525.2,3.60369]
[1724891190084,0.00593907,2525.4,2525.2,3.2078]
[1724891190391,0.00593907,2525.4,2525.3,40.8]
[1724891191188,0.00593907,2525.4,2525.3,41.19589]
[1724891191381,0.00593907,2525.4,2525.3,45.15589]
[1724891191587,0.3588,2526.1,2525.9,0.39579]
[1724891191791,0.3533,2526.5,2525.6,3.2078]
[1724891191792,4.9233,2526.5,2525.6,3.2078]
[1724891191994,4.9233,2526.5,2525.4,1.35918]
[1724891191995,4.9233,2526.5,2526.1,0.39575]
[1724891192177,4.9233,2526.5,2526.2,0.39574]
[1724891192383,0.39569,2526.6,2526.1,0.39576]
[1724891192684,4.57,2526.2,2526.1,0.00593907]
[1724891192887,8.92415,2526.2,2526.1,0.00593907]
[1724891193087,14.92415,2526.2,2526.1,0.00593907]
[1724891193286,9.27745,2526.2,2526.1,0.00593907]
[1724891193793,15.27745,2526.2,2526.1,0.00593907]
[1724891195383,15.2667,2526.2,2525.1,3.2078]
[1724891195580,4.57,2525.6,2525.1,3.2078]
[1724891195785,4.57,2525.6,2525.2,0.3959]
[1724891195980,4.57,2525.6,2525.2,41.1959]
[1724891196190,7.7778,2525.9,2525.5,0.39586]
[1724891196400,4.7043,2526.2,2525.2,40.8]
[1724891196401,12.0971,2526.2,2525.4,3.2078]
[1724891196587,8.1311,2526.2,2525.9,0.39579]
[1724891196987,8.1311,2526.2,2525.8,0.3958]
[1724891197190,0.13064787,2526.1,2525.8,0.3958]
[1724891197380,8.1311,2526.2,2525.8,0.3958]
[1724891197586,0.13065168,2526.1,2525.7,0.39582]
[1724891197786,8.52685,2526.2,2525.7,0.39582]
[1724891198090,0.13065281,2526.1,2525.8,0.3958]
[1724891198295,0.13065113,2526.0,2525.8,0.3958]
[1724891198589,8.1311,2526.2,2525.9,0.39579]
[1724891198794,8.1311,2526.2,2525.5,0.3525]
[1724891198795,8.52685,2526.2,2525.5,0.3525]
[1724891199092,0.43493395,2526.1,2525.5,0.3525]
[1724891199394,4.57,2525.9,2525.5,0.3525]
[1724891199593,0.43493395,2525.8,2525.7,0.39583]
[1724891199797,0.13064557,2525.8,2525.7,0.39583]
[1724891200093,4.08984557,2525.8,2525.5,0.3525]
[1724891200294,0.13064557,2525.7,2525.5,0.3525]
[1724891200498,4.9658,2525.9,2525.5,0.3525]
[1724891200705,0.13067148,2525.8,2525.5,0.74836]
[1724891200882,0.13067148,2525.7,2525.5,0.74836]
[1724891201086,4.96579,2525.9,2525.5,0.3525]
[1724891201285,4.96579,2525.9,2525.4,3.60366]
[1724891201286,0.83077041,2525.8,2525.4,3.2078]
[1724891201488,4.70067293,2525.7,2525.0,3.5853]
[1724891201699,0.39589,2525.3,2525.0,0.3775]
[1724891202089,4.96588,2525.4,2525.0,0.3775]
[1724891202395,0.13068237,2525.3,2525.0,0.3775]
[1724891202589,3.33850565,2525.2,2524.8,41.19596]
[1724891202787,0.13070942,2525.1,2524.6,3.2078]
[1724891202989,3.2078,2525.2,2524.6,3.2078]
[1724891203194,0.13070905,2525.1,2525.0,0.39594]
[1724891203391,0.36533907,2525.6,2524.9,3.2078]
[1724891203582,0.434984,2525.5,2525.0,0.7379]
[1724891203783,0.00593907,2525.6,2525.2,3.2078]
[1724891204594,0.00593907,2525.6,2525.5,0.39586]
[1724891204897,0.13662599,2525.6,2525.4,0.39586]
[1724891205088,0.00593907,2525.6,2525.5,0.39586]
[1724891205494,0.00593907,2525.6,2525.5,4.35506]
[1724891206193,0.00593907,2525.6,2525.5,13.56286]
[1724891206499,0.00593907,2525.6,2525.5,0.39586]
[1724891206795,0.00593907,2525.6,2525.5,45.15506]
[1724891207186,0.00593907,2525.6,2525.5,41.19586]
[1724891207589,0.40177907,2525.6,2525.5,40.8]
[1724891207994,0.00593907,2525.6,2525.3,0.39589]
[1724891208198,0.00593907,2525.6,2525.4,0.39587]
[1724891208498,0.00593907,2525.6,2525.4,40.8]
[1724891208697,0.00593907,2525.6,2525.3,0.39588]
[1724891209199,0.00593907,2525.6,2525.3,41.19588]
[1724891209500,0.00593907,2525.6,2525.3,40.8]
[1724891209695,0.40178907,2525.6,2525.3,40.8]
[1724891209898,0.13068556,2525.5,2525.2,3.6037]
[1724891210096,0.00593907,2525.6,2525.2,3.6037]
[1724891210291,0.00593907,2525.6,2525.2,44.4037]
[1724891210997,0.00593907,2525.6,2525.2,3.60369]
[1724891211199,0.13069847,2525.5,2525.2,3.60369]
[1724891211401,0.00593907,2525.6,2525.2,3.2078]
[1724891211606,0.52655902,2525.5,2525.2,3.2078]
[1724891211907,0.37663907,2525.6,2525.3,0.39589]
[1724891212197,0.00593907,2525.6,2525.5,0.39586]
[1724891212799,0.00593907,2525.6,2525.5,14.55251]
[1724891212997,3.2078,2526.2,2525.5,14.15665]
[1724891213304,3.2078,2526.2,2526.1,0.39576]
[1724891213605,3.33845155,2526.2,2526.1,0.39576]
[1724891213799,3.33845155,2526.2,2525.6,0.7698]
[1724891213998,0.52642511,2526.1,2525.7,0.39583]
[1724891214205,7.78373907,2526.2,2525.8,0.3958]
[1724891214399,0.52644008,2526.1,2525.8,40.8]
[1724891214709,0.39577,2526.1,2525.8,40.8]
[1724891214896,0.76957,2526.1,2525.7,0.39582]
[1724891215300,0.3738,2526.1,2525.6,0.77573907]
[1724891215602,7.78373907,2526.2,2526.0,0.39577]
[1724891215794,0.1306708,2526.1,2525.8,0.3958]
[1724891215994,8.17948907,2526.2,2525.8,0.3958]
[1724891216192,0.13067747,2526.1,2526.0,0.39578]
[1724891216707,0.00593907,2526.2,2526.1,0.39576]
[1724891217004,9.07e-06,2526.2,2526.1,7.56196]
[1724891217205,9.07e-06,2526.2,2526.1,13.56196]
[1724891217901,9.07e-06,2526.2,2526.1,14.92338]
[1724891218610,9.07e-06,2526.2,2526.1,55.72338]
[1724891218794,9.07e-06,2526.2,2526.1,56.7128]
[1724891219000,9.07e-06,2526.2,2526.1,61.2828]
[1724891219195,9.07e-06,2526.2,2526.1,55.72338]
[1724891219807,9.07e-06,2526.2,2526.1,54.73396]
[1724891220699,9.07e-06,2526.2,2526.1,48.73396]
[1724891221094,9.07e-06,2526.2,2526.1,54.73396]
[1724891221898,9.07e-06,2526.2,2526.1,55.72338]
[1724891222103,9.07e-06,2526.2,2526.1,56.7128]
[1724891223002,9.07e-06,2526.2,2526.1,55.72338]
[1724891224712,9.07e-06,2526.2,2526.1,49.72338]
[1724891224900,9.07e-06,2526.2,2526.1,54.73396]
[1724891225100,9.07e-06,2526.2,2526.1,48.36196]
[1724891225299,9.07e-06,2526.2,2526.1,44.40356]
[1724891225506,9.07e-06,2526.2,2526.1,48.36196]
[1724891225707,9.07e-06,2526.2,2526.1,54.36196]
[1724891226413,9.07e-06,2526.2,2526.1,48.36196]
[1724891227009,9.07e-06,2526.2,2526.1,47.9662]
[1724891227206,9.07e-06,2526.2,2526.1,48.36196]
[1724891227713,9.07e-06,2526.2,2526.1,54.36196]
[1724891227910,9.07e-06,2526.2,2526.1,55.35138]
[1724891228105,9.07e-06,2526.2,2526.1,59.92138]
[1724891228305,9.07e-06,2526.2,2526.1,60.9108]
[1724891229611,3.2078,2527.4,2527.3,0.39558]
[1724891229800,3.2078,2527.4,2526.5,0.98923]
[1724891229801,3.60337,2527.4,2526.9,7.3988]
[1724891230006,3.60337,2527.4,2527.1,0.39561]
[1724891230310,0.39558,2527.3,2527.0,0.39561]
[1724891232009,0.00593907,2527.4,2526.9,7.40473907]
[1724891232215,0.39561,2527.1,2526.9,4.19693907]
[1724891232507,0.00593907,2527.4,2526.9,4.19693907]
[1724891232702,0.39562,2527.0,2526.9,4.19693907]
[1724891232905,0.39559,2527.2,2526.9,4.19693907]
[1724891233101,0.3743,2527.1,2526.9,4.19693907]
[1724891234909,0.3743,2527.1,2527.0,0.39562]
[1724891236308,0.3743,2527.1,2526.9,0.40156907]
[1724891236508,0.3743,2527.1,2526.9,0.00593907]
[1724891236711,0.3801,2527.0,2526.9,0.00593907]
[1724891236913,0.3801,2527.0,2526.9,0.40157907]
[1724891237304,0.3801,2527.0,2526.9,0.00593907]
[1724891239106,0.3801,2527.0,2526.9,0.40157907]
[1724891239306,0.3801,2527.0,2526.9,0.00593907]
[1724891242812,0.77572,2527.0,2526.9,0.00593907]
[1724891243116,9.30333,2527.0,2526.6,0.39567]
[1724891243314,0.77573,2527.0,2526.6,0.39567]
[1724891244216,0.77573,2527.0,2526.6,0.39568]
[1724891244812,0.77573,2527.0,2526.7,0.39567]
[1724891245219,3.5821,2527.1,2526.7,3.2078]
[1724891245414,3.5821,2527.1,2527.0,0.39562]
[1724891246111,3.5821,2527.1,2526.9,0.39563]
[1724891246414,0.39564,2526.9,2526.5,0.00593907]
[1724891246619,0.39564,2526.9,2526.5,0.40162907]
[1724891246809,0.39568,2526.7,2526.5,0.00593907]
[1724891247016,0.39568,2526.6,2526.5,0.00593907]
[1724891247413,4.35328,2526.6,2526.5,0.00593907]
[1724891247710,0.39568,2526.6,2526.5,0.00593907]
[1724891248419,0.75968,2526.7,2526.5,0.00593907]
[1724891248822,4.35328,2526.6,2526.5,0.00593907]
[1724891249715,4.48395459,2526.6,2526.5,0.00593907]
[1724891250019,0.13067459,2526.6,2526.5,0.40163907]
[1724891250220,0.13067459,2526.6,2526.5,0.00593907]
[1724891250221,4.08827459,2526.6,2526.5,0.00593907]
[1724891251120,0.13067459,2526.6,2526.5,0.00593907]
[1724891251325,0.13067459,2526.6,2526.5,0.40163907]
[1724891251820,0.13067459,2526.6,2526.5,0.00593907]
[1724891252922,0.26134467,2526.6,2526.5,0.00593907]
[1724891253227,4.21894467,2526.6,2526.5,0.00593907]
[1724891254118,0.13067459,2526.6,2526.5,0.40163907]
[1724891256020,0.13067459,2526.6,2526.5,4.35923907]
[1724891256221,0.13067459,2526.6,2526.5,5.34849907]
[1724891256819,0.13067459,2526.6,2526.5,4.35923907]
[1724891257612,0.13067459,2526.6,2526.5,5.34849907]
[1724891257817,4.00312753,2527.3,2526.5,5.34849907]
[1724891257818,0.00593907,2527.4,2527.3,0.39558]
[1724891258022,0.13657044,2527.4,2527.3,0.39558]
[1724891258221,0.13657044,2527.4,2527.3,4.35238]
[1724891258521,0.00593907,2527.4,2527.2,0.39558]
[1724891258715,0.13063137,2527.3,2527.2,0.39558]
[1724891258915,0.13063137,2527.3,2527.1,0.3956]
[1724891259114,0.13063137,2527.2,2527.1,0.3956]
[1724891259620,0.00593907,2527.4,2527.3,0.39558]
[1724891260323,0.44095968,2527.4,2527.2,0.39558]
[1724891260517,0.00593907,2527.4,2527.3,0.39558]
[1724891261214,0.44097019,2527.4,2527.2,0.39558]
[1724891261410,0.13062942,2527.3,2527.2,4.35239]
[1724891261616,4.00312753,2527.8,2527.7,0.39551]
[1724891261815,0.61518765,2528.2,2527.7,7.1638]
[1724891262014,0.55169146,2528.1,2527.8,0.3955]
[1724891262221,0.30432841,2528.0,2527.9,0.39548]
[1724891262826,0.30432841,2528.0,2527.9,4.73588]
[1724891263029,0.00593907,2528.2,2528.1,0.39545]
[1724891263413,0.00593907,2528.2,2528.1,10.35065]
[1724891263927,0.3953,2529.1,2528.7,0.39535]
[1724891264221,0.3892,2529.2,2528.6,0.39536]
[1724891264222,0.69967647,2529.0,2528.6,0.39536]
[1724891264427,0.3953,2529.1,2528.6,0.39536]
[1724891264817,0.40123907,2529.1,2528.6,0.39536]
[1724891265018,0.00593907,2529.1,2528.5,0.3804]
[1724891265213,0.00593907,2529.1,2528.4,4.58639]
[1724891265214,3.2078,2528.9,2528.4,4.58639]
[1724891265525,0.39534,2528.8,2528.4,4.191]
[1724891265731,3.60313,2528.9,2528.4,4.191]
[1724891265931,0.39533,2528.9,2528.4,4.191]
[1724891266228,3.2078,2528.5,2528.1,40.8]
[1724891266425,0.7324,2528.4,2528.1,0.39545]
[1724891266624,3.2078,2528.5,2528.0,0.3804]
[1724891266828,3.2078,2528.5,2528.3,0.39541]
[1724891267320,3.2078,2528.5,2528.0,41.1804]
[1724891267321,3.2078,2528.5,2528.2,0.39543]
[1724891267721,3.2078,2528.5,2528.3,40.8]
[1724891267925,0.39534,2528.8,2528.3,40.8]
[1724891267926,8.5102,2529.0,2528.3,40.8]
[1724891268226,8.5102,2529.0,2528.6,3.2078]
[1724891268227,3.2078,2529.0,2528.6,3.2078]
[1724891268429,3.2078,2529.0,2528.7,0.76265]
[1724891268624,3.2078,2529.0,2528.7,0.3673]
[1724891268825,3.2078,2529.0,2528.8,0.39533]
[1724891269222,3.2078,2529.0,2528.7,0.76265]
[1724891269827,3.2078,2529.0,2528.7,0.3673]
[1724891270030,3.2078,2529.0,2528.7,0.76266]
[1724891270521,3.2078,2529.0,2528.8,0.39534]
[1724891270723,3.2078,2529.0,2528.4,0.3858]
[1724891270924,0.39533,2528.9,2528.4,0.7812]
[1724891271118,0.39533,2528.9,2528.5,0.39539]
[1724891271119,0.3891,2528.8,2528.5,0.39539]
[1724891271320,0.3891,2528.8,2528.4,0.3858]
[1724891271723,0.3891,2528.8,2528.5,0.39538]
[1724891272128,0.3891,2528.8,2528.4,0.7812]
[1724891272327,3.2078,2528.7,2528.4,0.3858]
[1724891272525,3.2078,2528.7,2528.5,0.39538]
[1724891273134,0.3604,2528.9,2528.4,0.3858]
[1724891273135,0.3604,2528.9,2528.4,0.78119]
[1724891273332,0.3604,2528.9,2528.4,0.3858]
[1724891273525,0.3954,2528.5,2528.2,0.3875]
[1724891273723,0.3954,2528.4,2528.0,4.191]
[1724891273940,3.2078,2528.3,2527.8,41.93759]
[1724891274434,3.2078,2528.3,2527.8,41.5421]
[1724891274637,0.39545,2528.2,2527.8,40.8]
[1724891275432,3.5626,2528.3,2527.7,7.40473907]
[1724891275635,3.5626,2528.3,2527.7,3.21373907]
[1724891275930,3.2078,2528.0,2527.7,0.00593907]
[1724891276136,0.3552,2527.9,2527.7,0.00593907]
[1724891277842,4.3515,2527.8,2527.7,0.00593907]
[1724891278526,10.3515,2527.8,2527.7,0.00593907]
[1724891278928,4.3515,2527.8,2527.7,0.00593907]
[1724891280139,3.956,2527.8,2527.7,0.00593907]
[1724891280533,0.3552,2527.9,2527.7,0.00593907]
[1724891282543,0.3552,2527.9,2527.7,0.40144907]
[1724891282842,0.3552,2527.9,2527.7,0.00593907]
[1724891283344,4.3515,2527.8,2527.7,0.00593907]
[1724891284241,3.956,2527.8,2527.7,0.00593907]
[1724891284441,5.32069,2527.9,2527.7,0.00593907]
[1724891284836,0.3552,2527.9,2527.7,0.00593907]
[1724891285038,0.3552,2527.9,2527.8,0.3955]
[1724891285451,0.3552,2527.9,2527.7,0.00593907]
[1724891285850,0.3552,2527.9,2527.7,0.40143907]
[1724891286244,0.3552,2527.9,2527.8,0.3955]
[1724891286644,3.2078,2528.0,2527.8,4.35149]
[1724891286946,3.2078,2528.0,2527.7,0.00593907]
[1724891287549,3.2078,2528.0,2527.7,0.40144907]
[1724891288152,3.2078,2528.0,2527.9,0.39548]
[1724891288742,3.2078,2528.0,2527.8,0.39549]
[1724891288947,3.2078,2528.0,2527.7,0.40143907]
[1724891289147,3.2078,2528.0,2527.8,0.3955]
[1724891289343,3.2078,2528.0,2527.9,0.39548]
[1724891290249,3.2078,2528.0,2527.9,4.35148]
[1724891290949,3.2078,2528.0,2527.8,1.14039]
[1724891291346,3.2078,2528.0,2527.9,0.39548]
[1724891291750,3.2078,2528.0,2527.8,1.14039]
[1724891292051,3.2078,2528.0,2527.9,0.39548]
[1724891292957,0.3955,2527.8,2527.7,0.00593907]
[1724891293148,3.2078,2528.0,2527.7,0.00593907]
[1724891293649,3.2078,2528.0,2527.8,0.39549]
[1724891294247,3.9449,2528.3,2527.9,0.39548]
[1724891294451,3.2078,2528.3,2527.9,0.7391]
[1724891294647,3.60323,2528.3,2527.9,0.7391]
[1724891294852,3.60323,2528.3,2527.9,1.13458]
[1724891295851,3.2078,2528.2,2528.0,0.39547]
[1724891296546,3.2078,2528.2,2527.9,1.13457]
[1724891296754,0.39542,2528.3,2527.9,1.13457]
[1724891296956,0.39544,2528.2,2527.9,0.7391]
[1724891297157,0.39547,2528.0,2527.7,0.00593907]
[1724891297856,0.39546,2528.1,2527.7,0.40144907]
[1724891298965,7.0031,2528.2,2527.7,0.00593907]
[1724891299165,7.0031,2528.2,2527.9,0.39548]
[1724891299166,3.5831,2528.2,2527.9,0.39548]
[1724891299462,3.2078,2528.2,2528.1,0.39545]
[1724891300063,3.2078,2528.2,2528.1,4.35065]
[1724891300362,0.75998,2528.6,2528.1,3.9552]
[1724891300363,3.2078,2528.5,2528.1,3.9552]
[1724891300561,3.2078,2528.5,2528.4,0.3954]
[1724891301064,3.2078,2528.5,2528.4,4.3506]
[1724891301260,3.2078,2528.5,2528.4,45.1506]
[1724891302156,3.2078,2528.5,2528.4,51.1506]
[1724891302356,3.2078,2528.5,2528.4,45.1506]
[1724891302659,0.39537,2528.7,2528.4,45.1506]
[1724891302857,0.39537,2528.7,2528.4,41.1954]
[1724891303561,0.13044389,2528.6,2528.4,41.1954]
[1724891303761,0.39535,2528.8,2528.4,41.1954]
[1724891303970,0.1304421,2528.7,2528.4,41.1954]
[1724891304163,0.1304421,2528.6,2528.4,40.8]
[1724891304370,0.39541,2528.4,2528.1,3.2078]
[1724891304558,0.5088421,2528.3,2528.1,3.2078]
[1724891304863,3.9458721,2528.2,2528.1,3.2078]
[1724891305066,4.24999239,2528.2,2528.1,3.2078]
[1724891305862,3.85456239,2528.2,2528.1,3.2078]
[1724891306469,0.43456239,2528.2,2528.1,3.2078]
[1724891308671,0.43456239,2528.2,2528.0,0.39546]
[1724891309171,0.43456239,2528.2,2528.0,3.9552]
[1724891309474,4.61808066,2528.6,2528.0,3.9552]
[1724891309475,0.39535,2528.8,2528.3,0.39541]
[1724891309775,0.68186671,2528.7,2528.3,0.39541]
[1724891310075,0.39535,2528.8,2528.3,0.39541]
[1724891310076,0.43455821,2528.6,2528.3,0.39541]
[1724891310266,0.43455787,2528.5,2528.3,0.39541]
[1724891310466,0.39535,2528.8,2528.4,0.3954]
[1724891310664,0.68187102,2528.7,2528.4,0.3954]
[1724891310970,0.39535,2528.8,2528.4,0.3954]
[1724891310971,0.43456171,2528.6,2528.4,0.3954]
[1724891311170,0.13044563,2528.5,2528.4,0.3954]
[1724891311369,0.43456171,2528.5,2528.3,0.39541]
[1724891311667,0.69952017,2528.4,2528.0,0.39546]
[1724891311866,0.82339397,2528.3,2527.9,3.5675]
[1724891312168,0.82339397,2528.3,2528.0,0.39546]
[1724891312169,0.13046336,2528.2,2528.0,0.39546]
[1724891312965,0.13046336,2528.2,2528.1,0.39545]
[1724891313462,0.13046336,2528.2,2528.0,0.39546]
[1724891314268,0.3888,2528.3,2528.0,0.39546]
[1724891314577,0.13047016,2528.2,2528.0,0.39546]
[1724891314770,0.3888,2528.3,2527.8,4.191]
[1724891314771,0.13047016,2528.1,2527.8,4.191]
[1724891314973,0.3955,2527.8,2527.7,0.00593907]
[1724891315173,4.25009638,2527.8,2527.7,0.00593907]
[1724891315469,8.20609638,2527.8,2527.7,0.00593907]
[1724891315867,9.20279492,2527.8,2527.7,0.00593907]
[1724891316171,9.20279051,2527.8,2527.7,0.00593907]
[1724891316374,9.20278972,2527.8,2527.7,0.00593907]
[1724891316574,0.39553,2527.6,2527.2,0.39559]
[1724891316771,0.43459638,2527.5,2527.2,0.39559]
[1724891317069,0.43459638,2527.5,2527.3,40.8]
[1724891317275,0.13047016,2527.4,2527.3,40.8]
[1724891317474,0.13047016,2527.4,2527.3,41.19557]
[1724891317679,0.00593907,2527.6,2527.3,40.8]
[1724891317872,0.13049355,2527.4,2527.3,40.8]
[1724891318369,0.13049355,2527.5,2527.3,40.8]
[1724891318572,0.13049355,2527.4,2527.3,40.8]
[1724891318763,0.83607024,2527.6,2527.3,40.8]
[1724891318968,0.43459117,2527.5,2527.3,40.8]
[1724891319172,0.13049355,2527.4,2527.3,41.19557]
[1724891319574,0.13049355,2527.4,2527.3,45.15237]
[1724891320172,0.13049355,2527.4,2527.3,51.15237]
[1724891320667,0.13049355,2527.4,2527.3,45.15237]
[1724891321379,0.00593907,2527.6,2527.5,0.39554]
[1724891321589,0.44052104,2527.6,2527.5,0.39554]
[1724891321878,0.44052106,2527.6,2527.5,0.39554]
[1724891322466,0.44052106,2527.6,2527.5,4.35234]
[1724891322669,0.13641656,2527.6,2527.5,4.35234]
[1724891322867,0.44053218,2527.6,2527.5,4.35234]
[1724891323173,0.13641656,2527.6,2527.5,4.35234]
[1724891323479,0.44051957,2527.6,2527.5,4.35234]
[1724891324283,0.44052715,2527.6,2527.5,4.35234]
[1724891324582,0.44052715,2527.6,2527.3,41.19557]
[1724891324876,0.43458808,2527.5,2527.3,41.19557]
[1724891325082,0.39023907,2527.6,2527.3,41.19557]
[1724891325278,0.13048881,2527.4,2527.1,0.00593907]
[1724891325480,0.39557,2527.4,2527.1,0.00593907]
[1724891325785,0.43461549,2527.3,2527.1,0.00593907]
[1724891326575,3.2078,2527.2,2527.1,0.00593907]
[1724891326883,4.00981549,2527.2,2527.1,0.00593907]
[1724891327081,8.21405246,2527.2,2527.1,0.00593907]
[1724891327383,7.96661227,2527.2,2527.1,0.00593907]
[1724891327878,8.36220227,2527.2,2527.1,0.00593907]
[1724891328087,4.00981227,2527.2,2527.1,0.00593907]
[1724891328579,3.64241227,2527.2,2527.1,4.35834907]
[1724891328787,3.64241227,2527.2,2527.1,0.00593907]
[1724891329083,3.64236721,2527.2,2527.1,0.40154907]
[1724891329278,3.33828656,2527.2,2527.1,0.00593907]
[1724891329477,3.64234391,2527.2,2527.1,0.00593907]
[1724891329680,3.64234391,2527.2,2527.1,0.40154907]
[1724891329881,3.33828656,2527.2,2527.1,0.40154907]
[1724891330673,0.13048656,2527.2,2527.1,7.77834907]
[1724891330879,0.00593907,2527.6,2527.5,0.39554]
[1724891331074,0.44047974,2527.6,2527.5,4.35234]
[1724891331279,0.13640974,2527.6,2527.5,45.15234]
[1724891331881,4.48873974,2527.6,2527.5,40.8]
[1724891332080,0.39557,2527.4,2527.1,0.00593907]
[1724891332276,0.75715,2527.5,2527.1,0.40153907]
[1724891332593,0.43459391,2527.4,2527.2,41.19559]
[1724891332777,0.75715,2527.5,2527.2,41.19559]
[1724891332979,0.1304918,2527.3,2527.2,40.8]
[1724891333174,3.2078,2527.4,2527.1,0.00593907]
[1724891333175,4.03795745,2527.4,2527.1,0.00593907]
[1724891333381,0.43458745,2527.3,2527.1,0.00593907]
[1724891334280,0.43458745,2527.3,2527.1,40.80593907]
[1724891334796,0.43458745,2527.3,2527.1,41.20153907]
[1724891334984,0.1304918,2527.3,2527.1,41.20153907]
[1724891335283,0.1304918,2527.3,2527.2,0.39559]
[1724891335586,0.37273907,2527.6,2527.4,0.39556]
[1724891335784,0.13048036,2527.5,2527.4,0.39556]
[1724891335989,0.37273907,2527.6,2527.3,0.39557]
[1724891336291,0.43455294,2527.5,2527.2,0.351]
[1724891336481,0.13047532,2527.4,2527.2,0.39558]
[1724891336681,3.58053907,2527.6,2527.4,0.39555]
[1724891336986,0.13047721,2527.5,2527.4,0.39556]